bitfinex-derivatives/quotes_BNBF0:USTF0_20250330
["timestamp","ask_amount","ask_price","bid_price","bid_amount"]
[1743294273709,1.245,604.2,603.57,0.33136173]
[1743294273910,1.245,604.2,603.64,0.28806874]
[1743294276711,1.245,604.2,603.57,0.33136173]
[1743294277108,1.245,604.2,603.64,0.28808901]
[1743294279615,1.245,604.2,603.57,0.33136173]
[1743294280011,1.245,604.2,603.64,0.28808901]
[1743294282817,1.245,604.2,603.57,0.33136173]
[1743294283021,2.481,604.2,603.57,0.33136173]
[1743294283220,2.481,604.2,603.64,0.28808901]
[1743294285823,2.481,604.2,603.57,0.33136173]
[1743294286223,2.481,604.2,603.64,0.28808901]
[1743294288019,4.21,604.2,603.64,0.28808901]
[1743294288823,4.21,604.2,603.57,0.33136173]
[1743294289129,4.21,604.2,603.64,0.28811286]
[1743294291624,4.21,604.2,603.19,1.47407648]
[1743294291825,4.21,604.2,603.19,1.80564696]
[1743294292030,4.21,604.2,603.64,0.28819398]
[1743294292231,4.21,604.2,603.19,1.80564696]
[1743294292427,4.21,604.2,603.19,0.33157048]
[1743294292626,4.696,604.2,603.19,0.33157048]
[1743294293131,4.696,604.2,603.2,0.28821785]
[1743294294732,4.696,604.2,603.19,0.33157048]
[1743294295133,4.696,604.2,603.2,0.28819398]
[1743294297731,4.696,604.2,603.19,0.33157048]
[1743294298236,4.696,604.2,603.2,0.28820114]
[1743294300739,4.696,604.2,603.19,0.33157048]
[1743294300942,4.696,604.2,603.2,0.28822263]
[1743294303642,4.696,604.2,603.19,0.33157048]
[1743294304037,4.696,604.2,603.2,0.28822263]
[1743294306745,4.696,604.2,603.19,0.33157048]
[1743294307140,4.696,604.2,603.2,0.28822263]
[1743294309644,4.696,604.2,603.19,0.33157048]
[1743294310043,4.696,604.2,603.2,0.28821785]
[1743294312748,4.696,604.2,603.19,0.33157048]
[1743294313050,4.696,604.2,603.2,0.28821785]
[1743294315651,4.696,604.2,603.19,0.33157048]
[1743294316255,4.696,604.2,603.2,0.28826441]
[1743294318650,4.696,604.2,603.19,0.33157048]
[1743294318954,4.696,604.2,603.2,0.28821785]
[1743294324654,4.696,604.2,603.19,0.33157048]
[1743294325057,4.696,604.2,603.2,0.28822501]
[1743294327755,4.696,604.2,603.19,0.33157048]
[1743294328060,4.696,604.2,603.2,0.28822501]
[1743294330660,4.696,604.2,603.19,0.33157048]
[1743294331163,4.696,604.2,603.2,0.28823695]
[1743294333658,4.696,604.2,603.19,0.33157048]
[1743294334061,4.696,604.2,603.2,0.28824411]
[1743294334568,0.33102169,604.19,603.2,0.28824411]
[1743294336768,0.33102169,604.19,603.19,0.33157048]
[1743294336972,0.33102169,604.19,603.2,0.28821308]
[1743294337870,0.81702169,604.19,603.2,0.28821308]
[1743294338075,2.16102169,604.19,603.2,0.28821308]
[1743294338275,3.38902169,604.19,603.2,0.28821308]
[1743294338479,4.64702169,604.19,603.2,0.28821308]
[1743294339774,4.64702169,604.19,603.19,0.33157048]
[1743294340178,4.64702169,604.19,603.2,0.28825008]
[1743294342681,4.64702169,604.19,603.19,0.33157048]
[1743294342981,4.64702169,604.19,603.2,0.28825008]
[1743294345683,4.64702169,604.19,603.19,0.33157048]
[1743294346278,4.64702169,604.19,603.2,0.2883731]
[1743294348786,4.64702169,604.19,603.19,0.33157048]
[1743294348980,4.64702169,604.19,603.2,0.28825724]
[1743294351685,4.64702169,604.19,603.19,0.33157048]
[1743294352079,4.64702169,604.19,603.2,0.28826202]
[1743294354688,4.64702169,604.19,603.19,0.33157048]
[1743294355288,4.64702169,604.19,603.2,0.28828948]
[1743294360691,4.64702169,604.19,602.7,1.47407648]
[1743294360890,4.64702169,604.19,602.71,0.33183454]
[1743294361087,4.64702169,604.19,603.2,0.28826918]
[1743294361489,4.64702169,604.19,602.81,1.47407648]
[1743294361685,4.64702169,604.19,602.82,0.33177399]
[1743294361886,1.3947293,604.18,602.82,0.33177399]
[1743294362088,0.33103265,604.17,602.82,0.33177399]
[1743294362690,0.33103265,604.17,602.83,0.28833726]
[1743294363793,0.33103265,604.17,602.82,0.33177399]
[1743294363989,0.33103265,604.17,602.83,0.28831576]
[1743294364588,1.318,604.16,602.83,0.28831576]
[1743294364890,0.33104361,604.15,602.83,0.28831576]
[1743294365091,0.487,604.14,602.83,0.28831576]
[1743294365287,0.33105457,604.13,602.83,0.28831576]
[1743294366194,1.399,604.12,602.83,0.28831576]
[1743294366396,0.33106553,604.11,602.83,0.28831576]
[1743294366790,0.33106553,604.11,602.82,0.33177399]
[1743294367396,0.33106553,604.11,602.83,0.28835159]
[1743294370193,0.33106553,604.11,602.83,1.76242807]
[1743294371899,0.33106553,604.11,602.88,1.47407648]
[1743294373899,0.33106553,604.11,602.83,0.28835159]
[1743294378805,0.33106553,604.11,602.82,0.33177399]
[1743294379101,0.33106553,604.11,602.83,0.28835278]
[1743294381707,0.33106553,604.11,602.82,0.33177399]
[1743294381907,0.33106553,604.11,602.85,1.47407648]
[1743294383808,0.33106553,604.11,602.93,1.47407648]
[1743294385606,0.33106553,604.11,602.92,1.47407648]
[1743294387712,0.33106553,604.11,603.0,1.47407648]
[1743294389112,1.812,604.1,603.11,1.47407648]
[1743294389307,0.33107649,604.09,603.11,1.47407648]
[1743294391014,0.33107649,604.09,603.02,1.47407648]
[1743294391610,0.487,604.08,603.02,1.47407648]
[1743294391810,0.33108745,604.07,603.02,1.47407648]
[1743294392914,1.42308745,604.07,603.0,0.28832053]
[1743294393713,1.42308745,604.07,602.82,1.80585047]
[1743294394118,1.42308745,604.07,603.0,0.28835876]
[1743294394319,1.42308745,604.07,602.87,1.47407648]
[1743294395721,1.42308745,604.07,602.88,0.28835278]
[1743294395919,1.42308745,604.07,602.89,1.47407648]
[1743294396119,2.73608745,604.07,602.89,1.47407648]
[1743294397115,2.73608745,604.07,602.97,1.47407648]
[1743294398714,2.73608745,604.07,603.09,1.47407648]
[1743294400419,2.73608745,604.07,603.0,1.47407648]
[1743294401917,2.73608745,604.07,603.11,1.47407648]
[1743294404029,2.73608745,604.07,602.96,0.2882859]
[1743294404317,2.73608745,604.07,602.97,0.33169146]
[1743294405122,3.95408745,604.07,602.97,0.33169146]
[1743294420641,4.44108745,604.07,602.97,0.33169146]
[1743294425542,4.44108745,604.07,603.07,1.47407648]
[1743294426148,4.44108745,604.07,603.08,0.33163096]
[1743294427143,4.44108745,604.07,603.1,1.47407648]
[1743294428844,4.44108745,604.07,603.12,1.47407648]
[1743294431048,4.44108745,604.07,603.15,1.47407648]
[1743294434157,4.44108745,604.07,603.17,1.47407648]
[1743294435757,4.44108745,604.07,603.08,0.33163096]
[1743294435758,4.44108745,604.07,603.19,1.47407648]
[1743294437961,4.44108745,604.07,603.17,1.47407648]
[1743294439761,4.44108745,604.07,603.14,1.47407648]
[1743294441561,4.44108745,604.07,603.22,1.47407648]
[1743294444356,4.44108745,604.07,603.26,1.47407648]
[1743294445761,4.44108745,604.07,603.17,0.28823218]
[1743294447764,4.44108745,604.07,603.08,0.33163096]
[1743294448165,4.44108745,604.07,603.17,0.28827277]
[1743294448364,4.44108745,604.07,603.08,0.33163096]
[1743294448763,4.44108745,604.07,603.17,0.28827277]
[1743294448963,4.44108745,604.07,603.08,0.33163096]
[1743294449372,4.44108745,604.07,603.17,0.28827277]
[1743294449560,4.44108745,604.07,603.08,0.33163096]
[1743294449965,4.44108745,604.07,603.17,0.28827277]
[1743294450159,4.44108745,604.07,603.08,0.33163096]
[1743294450564,4.44108745,604.07,603.17,0.28827277]
[1743294450861,4.44108745,604.07,603.08,0.33163096]
[1743294451065,4.44108745,604.07,603.17,0.28827277]
[1743294451465,4.44108745,604.07,603.08,0.33163096]
[1743294451665,4.44108745,604.07,603.17,0.28827277]
[1743294452165,4.44108745,604.07,603.08,0.33163096]
[1743294452363,4.44108745,604.07,603.17,0.28827277]
[1743294452566,4.44108745,604.07,603.08,0.33163096]
[1743294452864,4.44108745,604.07,603.17,0.28827277]
[1743294453261,4.44108745,604.07,603.08,0.33163096]
[1743294453463,4.44108745,604.07,603.17,0.28827277]
[1743294453859,4.44108745,604.07,603.08,0.33163096]
[1743294454363,4.44108745,604.07,603.17,0.28827277]
[1743294454564,4.44108745,604.07,603.08,0.33163096]
[1743294455165,4.44108745,604.07,603.09,0.28829187]
[1743294456770,4.44108745,604.07,603.08,0.33163096]
[1743294457270,4.44108745,604.07,603.09,0.28828829]
[1743294458572,4.11,604.07,603.1,0.33161996]
[1743294485696,4.11,604.07,603.19,1.47407648]
[1743294487497,4.11,604.07,603.13,0.28826918]
[1743294489802,4.11,604.07,603.1,0.33161996]
[1743294490197,4.11,604.07,603.13,0.28827993]
[1743294490800,4.44108745,604.07,603.13,0.28827993]
[1743294492101,0.33109293,604.06,603.13,0.28827993]
[1743294493002,0.33109293,604.06,602.84,1.47407648]
[1743294493203,0.33109293,604.06,603.13,0.28832053]
[1743294493399,0.33109293,604.06,602.84,1.47407648]
[1743294493598,0.33109293,604.06,602.72,1.47407648]
[1743294493904,0.33109293,604.06,602.73,0.33182353]
[1743294494804,0.33109293,604.06,602.74,0.28834801]
[1743294495004,1.86,604.05,602.74,0.28834801]
[1743294495400,1.86,604.05,602.75,0.33181252]
[1743294495606,2.2341039,604.04,602.75,0.33181252]
[1743294495804,0.33110938,604.03,602.75,0.33181252]
[1743294496204,1.319,604.02,602.75,0.33181252]
[1743294496399,0.33112034,604.01,602.75,0.33181252]
[1743294516917,1.172,604.0,602.75,0.33181252]
[1743294517216,0.81913131,603.99,602.75,0.33181252]
[1743294517409,0.33113679,603.98,602.75,0.33181252]
[1743294526319,1.076,603.97,602.75,0.33181252]
[1743294526519,0.33115324,603.95,602.75,0.33181252]
[1743294540434,1.42315324,603.95,602.75,0.33181252]
[1743294544130,2.58615324,603.95,602.75,0.33181252]
[1743294551035,3.73015324,603.95,602.75,0.33181252]
[1743294551543,1.0981804,603.94,602.75,0.33181252]
[1743294552243,0.3311642,603.93,602.75,0.33181252]
[1743294564943,1.815,603.92,602.75,0.33181252]
[1743294565142,0.33117517,603.91,602.75,0.33181252]
[1743294565546,1.381,603.9,602.75,0.33181252]
[1743294565748,0.33118614,603.89,602.75,0.33181252]
[1743294580057,1.657,603.88,602.75,0.33181252]
[1743294580262,0.33119711,603.87,602.75,0.33181252]
[1743294589071,0.33119711,603.87,602.78,1.47407648]
[1743294591070,0.33119711,603.87,602.82,1.47407648]
[1743294592571,1.369,603.86,602.82,1.47407648]
[1743294592772,1.70020259,603.86,602.82,1.47407648]
[1743294593168,1.70020259,603.86,602.8,1.47407648]
[1743294595170,1.70020259,603.86,602.75,0.33181252]
[1743294595171,1.70020259,603.86,602.78,0.28841492]
[1743294597975,1.70020259,603.86,602.75,0.33181252]
[1743294598171,0.94,603.85,602.75,0.33181252]
[1743294598369,0.94,603.85,602.76,0.28842568]
[1743294600975,0.94,603.85,602.75,0.33181252]
[1743294601475,0.94,603.85,602.76,0.28842209]
[1743294601974,0.94,603.85,602.75,0.33181252]
[1743294602474,0.94,603.85,602.76,0.28842329]
[1743294603474,0.33121356,603.84,602.76,0.28842329]
[1743294603977,0.33121356,603.84,602.75,0.33181252]
[1743294604177,0.33121356,603.84,602.76,0.28843643]
[1743294605276,0.33121356,603.84,602.82,1.47407648]
[1743294606975,0.33121356,603.84,602.75,0.33181252]
[1743294607178,0.33121356,603.84,602.78,0.28844719]
[1743294608877,1.114,603.83,602.78,0.28844719]
[1743294609076,0.33122453,603.82,602.78,0.28844719]
[1743294610082,0.33122453,603.82,602.75,0.33181252]
[1743294610286,0.33122453,603.82,602.78,0.28848186]
[1743294611177,1.72796287,603.82,602.78,0.28848186]
[1743294611378,5.06570198,603.82,602.78,0.28848186]
[1743294611583,3.63171366,603.81,602.78,0.28848186]
[1743294611780,1.43398832,603.82,602.78,0.28848186]
[1743294611781,0.33124099,603.79,602.78,0.28848186]
[1743294612882,2.71731244,603.79,602.48,1.47407648]
[1743294613077,6.24674683,603.79,602.48,1.47407648]
[1743294613283,4.83798349,603.78,602.49,0.28855004]
[1743294613583,0.33125745,603.76,602.49,0.28855004]
[1743294613983,2.7152641,603.76,602.49,0.28855004]
[1743294614184,6.34697776,603.76,602.49,0.28855004]
[1743294614384,0.91771979,603.75,602.49,0.28855004]
[1743294614578,0.33127391,603.73,602.49,0.28855004]
[1743294615583,4.88070736,603.73,602.49,0.28855004]
[1743294615778,0.91771979,603.72,602.49,0.28855004]
[1743294615980,0.33129037,603.7,602.49,0.28855004]
[1743294616584,1.72802871,603.7,602.49,0.28855004]
[1743294617285,0.33129037,603.7,602.49,0.28855004]
[1743294618881,0.33129037,603.7,602.21,1.47407648]
[1743294619083,0.33129037,603.7,601.75,1.47407648]
[1743294619280,0.28860627,603.69,602.49,0.28860627]
[1743294619481,0.33130683,603.67,601.77,0.33235289]
[1743294620284,0.33130683,603.67,601.78,0.28867091]
[1743294620485,0.33130683,603.67,601.8,0.33233632]
[1743294622185,0.28866732,603.66,601.8,0.33233632]
[1743294622387,0.3313233,603.64,601.8,0.33233632]
[1743294631296,1.567,603.63,601.8,0.33233632]
[1743294631497,0.33133428,603.62,601.8,0.33233632]
[1743294634196,0.28870444,603.61,601.8,0.33233632]
[1743294634400,0.33135075,603.59,601.8,0.33233632]
[1743294634799,0.30472567,603.58,601.8,0.33233632]
[1743294635000,0.33136722,603.56,601.8,0.33233632]
[1743294635198,0.30472567,603.55,601.8,0.33233632]
[1743294635401,0.33136722,603.56,601.8,0.33233632]
[1743294636001,0.30475987,603.55,601.8,0.33233632]
[1743294636301,0.33138369,603.53,601.8,0.33233632]
[1743294637293,0.59349935,603.52,601.8,0.33233632]
[1743294637496,0.33140016,603.5,601.8,0.33233632]
[1743294637697,0.30477814,603.49,601.8,0.33233632]
[1743294637899,0.33141664,603.47,601.8,0.33233632]
[1743294638098,1.224,603.46,601.8,0.33233632]
[1743294638299,0.33143311,603.44,601.8,0.33233632]
[1743294638795,0.33143311,603.44,601.9,1.47407648]
[1743294638995,0.33143311,603.44,601.91,0.33227558]
[1743294641807,0.33143311,603.44,601.96,1.47407648]
[1743294642098,0.33143311,603.44,601.96,1.80632446]
[1743294643306,0.28872839,603.43,601.96,0.33224798]
[1743294643504,0.33144959,603.41,601.96,0.33224798]
[1743294649216,0.28874396,603.4,601.96,0.33224798]
[1743294649417,0.33146607,603.38,601.96,0.33224798]
[1743294658330,0.28877032,603.37,601.96,0.33224798]
[1743294658526,0.33148255,603.35,601.96,0.33224798]
[1743294663329,0.30496607,603.34,601.95,0.28877032]
[1743294663630,1.30296607,603.34,601.95,0.28877032]
[1743294663832,0.33149903,603.32,601.95,0.28877032]
[1743294664032,0.30496618,603.31,601.34,1.47407648]
[1743294664232,1.6918868,603.31,601.95,0.28890817]
[1743294664430,0.30496618,603.31,601.95,0.28890817]
[1743294664627,0.30496618,603.3,601.31,1.47407648]
[1743294664829,1.71841965,603.32,601.31,1.47407648]
[1743294664830,0.30496618,603.31,601.31,1.47407648]
[1743294665031,0.30496618,603.3,601.31,1.47407648]
[1743294665231,0.30496618,603.3,601.33,0.33259607]
[1743294665428,1.40772997,603.3,601.33,0.33259607]
[1743294665633,0.30496618,603.29,601.33,0.33259607]
[1743294665834,0.30496618,603.29,601.34,0.28891536]
[1743294666133,0.33152651,603.27,601.36,0.33257948]
[1743294666534,0.30497453,603.26,601.36,0.33257948]
[1743294666735,0.331543,603.24,601.36,0.33257948]
[1743294667231,0.28891776,603.23,601.36,0.33257948]
[1743294667437,0.33155949,603.21,601.36,0.33257948]
[1743294668334,2.70331265,603.21,601.36,0.33257948]
[1743294668938,6.21876217,603.21,601.36,0.33257948]
[1743294669138,6.64274083,603.2,601.36,0.33257948]
[1743294669434,2.37175316,603.19,601.36,0.33257948]
[1743294669636,0.33157598,603.18,601.36,0.33257948]
[1743294669836,3.93802653,603.18,601.36,0.33257948]
[1743294670041,3.60645055,603.17,601.36,0.33257948]
[1743294670340,0.33159247,603.15,601.36,0.33257948]
[1743294671042,1.37,603.14,601.36,0.33257948]
[1743294671440,0.33160896,603.12,601.36,0.33257948]
[1743294672343,1.10276379,603.11,601.36,0.33257948]
[1743294672535,0.33162546,603.09,601.36,0.33257948]
[1743294673340,0.28896814,603.08,601.36,0.33257948]
[1743294673536,0.33164195,603.06,601.36,0.33257948]
[1743294674340,1.24255195,603.06,601.36,0.33257948]
[1743294674842,4.09412977,603.06,601.36,0.33257948]
[1743294675041,1.38709636,603.05,601.36,0.33257948]
[1743294675237,0.33165845,603.03,601.36,0.33257948]
[1743294676243,0.28895495,603.02,601.36,0.33257948]
[1743294676443,0.33167495,603.0,601.36,0.33257948]
[1743294679340,0.28900414,602.99,601.36,0.33257948]
[1743294679541,0.33169146,602.97,601.36,0.33257948]
[1743294689454,0.952,602.96,601.36,0.33257948]
[1743294689657,0.33170246,602.95,601.36,0.33257948]
[1743294694665,0.33170246,602.95,601.45,1.47407648]
[1743294694864,0.33170246,602.95,601.46,0.33252419]
[1743294695658,0.33170246,602.95,601.66,1.47407648]
[1743294696868,1.43570246,602.95,601.66,1.47407648]
[1743294697962,1.43570246,602.95,601.54,2.50797734]
[1743294697963,1.43570246,602.95,601.68,1.47407648]
[1743294699568,1.43570246,602.95,601.56,2.50797734]
[1743294699769,1.43570246,602.95,601.48,1.47407648]
[1743294701171,1.43570246,602.95,601.5,1.47407648]
[1743294702968,2.62770246,602.95,601.5,1.47407648]
[1743294703171,0.28897654,602.94,601.48,1.76305302]
[1743294703367,0.33171896,602.92,601.48,1.76305302]
[1743294704974,0.33171896,602.92,601.48,0.28897654]
[1743294705770,1.24498539,602.92,601.48,0.28897654]
[1743294705972,4.09664232,602.92,601.46,0.33252419]
[1743294706172,1.38887907,602.91,601.46,0.33252419]
[1743294706371,2.59114724,602.91,601.48,0.28900174]
[1743294706869,0.33173547,602.89,601.48,0.28900174]
[1743294708971,0.33173547,602.89,601.46,0.33252419]
[1743294709171,0.33173547,602.89,601.48,0.28900294]
[1743294709372,0.28900294,602.88,601.48,0.28900294]
[1743294709576,0.33175198,602.86,601.48,0.28900294]
[1743294714981,0.33175198,602.86,601.46,0.33252419]
[1743294715181,0.33175198,602.86,601.48,0.28900654]
[1743294715381,0.28900654,602.85,601.48,0.28900654]
[1743294715574,0.33176849,602.83,601.48,0.28900654]
[1743294717979,0.33176849,602.83,601.46,0.33252419]
[1743294718481,0.28901014,602.82,601.48,0.28901014]
[1743294718677,0.331785,602.8,601.48,0.28901014]
[1743294720683,1.348,602.79,601.48,0.28901014]
[1743294720885,1.348,602.79,601.46,0.33252419]
[1743294721183,1.348,602.79,601.48,0.28900534]
[1743294721385,1.348,602.79,601.57,1.47407648]
[1743294721977,0.33179601,602.78,601.57,1.47407648]
[1743294722986,0.33179601,602.78,601.53,1.47407648]
[1743294724585,0.33179601,602.78,601.48,0.28900534]
[1743294725287,1.348,602.79,601.48,0.28900534]
[1743294726986,1.348,602.79,601.36,1.47407648]
[1743294727181,1.348,602.79,601.48,0.28898854]
[1743294727484,1.348,602.79,601.36,1.47407648]
[1743294728587,1.399,602.78,601.36,1.47407648]
[1743294728789,1.399,602.78,601.37,0.28898854]
[1743294729089,1.399,602.78,601.41,1.47407648]
[1743294730089,1.399,602.78,601.44,1.47407648]
[1743294731690,1.399,602.78,601.53,1.47407648]
[1743294733790,1.399,602.78,601.45,0.28894295]
[1743294735890,1.399,602.78,601.21,1.47407648]
[1743294736287,1.399,602.78,601.45,0.28899814]
[1743294736489,1.399,602.78,601.21,1.47407648]
[1743294736889,1.399,602.78,601.19,1.47407648]
[1743294737290,1.399,602.78,601.22,0.28899814]
[1743294740090,1.399,602.78,601.22,1.76307462]
[1743294742092,1.399,602.78,601.22,1.47407648]
[1743294742289,1.399,602.78,601.22,1.76307342]
[1743294742591,1.399,602.78,601.24,1.47407648]
[1743294744392,1.399,602.78,601.5,1.47407648]
[1743294746494,1.399,602.78,601.58,1.47407648]
[1743294748395,1.399,602.78,601.82,1.47407648]
[1743294750194,0.827,602.77,601.82,1.47407648]
[1743294750396,0.827,602.77,601.81,1.47407648]
[1743294752402,0.827,602.77,601.83,1.47407648]
[1743294754105,0.827,602.77,601.69,1.47407648]
[1743294754294,0.876,602.76,601.69,1.47407648]
[1743294755603,0.876,602.76,601.75,1.47407648]
[1743294757505,0.876,602.76,601.64,2.50797734]
[1743294757506,0.876,602.76,601.71,0.28892856]
[1743294759103,0.876,602.76,601.75,1.47407648]
[1743294761110,1.574,602.75,601.75,1.47407648]
[1743294761506,1.574,602.75,601.81,1.47407648]
[1743294763505,1.574,602.75,601.76,1.47407648]
[1743294765307,1.574,602.75,601.73,0.28891896]
[1743294765514,1.574,602.75,601.74,0.33236946]
[1743294768514,1.574,602.75,601.85,1.47407648]
[1743294770016,1.574,602.75,601.89,1.47407648]
[1743294771314,1.101,602.74,601.89,1.47407648]
[1743294772115,1.101,602.74,601.74,0.33236946]
[1743294772116,1.026,602.73,601.87,1.47407648]
[1743294773810,1.026,602.73,601.82,0.28888538]
[1743294775110,1.026,602.73,601.74,0.33236946]
[1743294775311,1.026,602.73,601.82,0.28890457]
[1743294775718,1.026,602.73,601.74,1.80644594]
[1743294776516,1.026,602.73,601.75,0.28890457]
[1743294776717,1.026,602.73,601.76,0.33235841]
[1743294786227,1.101,602.74,601.76,0.33235841]
[1743294787330,0.33182353,602.73,601.76,0.33235841]
[1743294788636,1.321,602.72,601.76,0.33235841]
[1743294789135,2.552,602.72,601.76,0.33235841]
[1743294789738,0.33183454,602.71,601.76,0.33235841]
[1743294790139,0.33183454,602.71,601.75,0.28894535]
[1743294793041,0.33183454,602.71,601.2,1.47407648]
[1743294793341,0.33183454,602.71,601.75,0.28906055]
[1743294793741,0.33183454,602.71,601.22,0.33265693]
[1743294793942,0.30525868,602.7,601.22,0.33265693]
[1743294794142,0.33185106,602.68,601.22,0.33265693]
[1743294794341,0.30525868,602.67,601.23,0.28914341]
[1743294794644,0.33186758,602.65,601.23,0.28914341]
[1743294796041,2.71129377,602.65,601.22,0.33265693]
[1743294796342,0.28916744,602.64,601.23,0.28916744]
[1743294796543,7.45064337,602.64,601.23,0.28916744]
[1743294796842,0.3318841,602.62,601.23,0.28916744]
[1743294797041,0.30534054,602.61,601.23,0.28916744]
[1743294797242,0.33190062,602.59,601.23,0.28916744]
[1743294797642,0.30534054,602.58,601.23,0.28916744]
[1743294797939,0.33191715,602.56,601.23,0.28916744]
[1743294798242,0.30534054,602.55,601.23,0.28916744]
[1743294798437,0.33193367,602.53,601.23,0.28916744]
[1743294798839,0.30536348,602.52,601.23,0.28916744]
[1743294799142,0.30536348,602.52,600.03,1.47407648]
[1743294799342,0.3319502,602.5,601.23,0.28934054]
[1743294799541,0.30536348,602.49,600.15,0.33325002]
[1743294800239,0.33196673,602.47,600.15,0.33325002]
[1743294800639,0.30536348,602.46,600.15,0.33325002]
[1743294800941,0.33198326,602.44,600.16,0.28933453]
[1743294801142,0.30536348,602.43,600.27,0.3331834]
[1743294802042,4.27008628,602.43,600.27,0.3331834]
[1743294802244,0.3319998,602.41,600.27,0.3331834]
[1743294802443,0.30536282,602.4,600.27,0.3331834]
[1743294802847,3.78483082,602.4,600.27,0.3331834]
[1743294803143,0.30536282,602.39,600.27,0.3331834]
[1743294803344,0.33202184,602.37,600.27,0.3331834]
[1743294803645,1.69759646,602.36,600.27,0.3331834]
[1743294803845,1.6976183,602.35,600.27,0.3331834]
[1743294804141,0.33204389,602.33,600.27,0.3331834]
[1743294804744,1.10004181,602.32,600.27,0.3331834]
[1743294805146,7.09866055,602.32,600.27,0.3331834]
[1743294805349,7.38802275,602.31,600.27,0.3331834]
[1743294805545,5.99861874,602.3,600.27,0.3331834]
[1743294805743,4.86656187,602.29,600.27,0.3331834]
[1743294805948,0.33207697,602.27,600.27,0.3331834]
[1743294806149,1.24738035,602.27,600.27,0.3331834]
[1743294806642,2.09114522,602.27,600.27,0.3331834]
[1743294806843,1.10004181,602.26,600.27,0.3331834]
[1743294807043,4.82562257,602.26,600.27,0.3331834]
[1743294807249,0.33209351,602.24,600.27,0.3331834]
[1743294808553,0.28942958,602.23,600.27,0.3331834]
[1743294809452,0.33210454,602.22,600.27,0.3331834]
[1743294811252,0.30545452,602.21,600.27,0.3331834]
[1743294811453,0.33212109,602.19,600.27,0.3331834]
[1743294811653,0.30545452,602.18,600.27,0.3331834]
[1743294811853,0.33213763,602.16,600.27,0.3331834]
[1743294813055,0.30548118,602.15,600.27,0.3331834]
[1743294813453,1.526,602.14,600.27,0.3331834]
[1743294815954,0.3321597,602.12,600.27,0.3331834]
[1743294817058,0.30549686,602.11,600.27,0.3331834]
[1743294817257,0.33217625,602.09,600.27,0.3331834]
[1743294817461,0.30549686,602.08,600.27,0.3331834]
[1743294818361,0.3321928,602.06,600.27,0.3331834]
[1743294818560,0.30549686,602.05,600.27,0.3331834]
[1743294818760,0.33220935,602.03,600.27,0.3331834]
[1743294825868,0.818,602.02,600.27,0.3331834]
[1743294826064,0.33222039,602.01,600.27,0.3331834]
[1743294836778,0.33222039,602.01,600.34,1.47407648]
[1743294836978,0.33222039,602.01,600.36,0.33313345]
[1743294839688,0.33222039,602.01,600.38,1.47407648]
[1743294839995,0.33222039,602.01,600.4,0.33311125]
[1743294840592,1.259,602.0,600.4,0.33311125]
[1743294841093,1.259,602.0,600.42,1.47407648]
[1743294841287,1.259,602.0,600.44,0.33308906]
[1743294843698,1.259,602.0,600.45,1.47407648]
[1743294843899,1.259,602.0,600.47,0.33307242]
[1743294846303,0.808,601.99,600.47,0.33307242]
[1743294847498,0.808,601.99,600.73,1.47407648]
[1743294847702,0.808,601.99,600.74,0.33292272]
[1743294850799,0.33223695,601.98,600.74,0.33292272]
[1743294851003,0.33223695,601.98,600.77,1.47407648]
[1743294852302,0.33223695,601.98,600.74,0.33292272]
[1743294860217,0.33223695,601.98,600.85,1.47407648]
[1743294861715,0.33223695,601.98,600.74,0.33292272]
[1743294861716,0.33223695,601.98,600.74,1.8069992]
[1743294863017,0.33223695,601.98,600.74,0.33292272]
[1743294868816,0.992,601.97,600.74,0.33292272]
[1743294869014,1.32424247,601.97,600.74,0.33292272]
[1743294870919,1.427,601.96,600.74,0.33292272]
[1743294872114,1.75924798,601.96,600.79,1.47407648]
[1743294872422,0.3322535,601.95,600.79,1.47407648]
[1743294873625,0.3322535,601.95,600.8,0.33288948]
[1743294873818,1.3302535,601.95,600.8,0.33288948]
[1743294874121,1.3302535,601.95,600.99,1.47407648]
[1743294876221,1.3302535,601.95,601.01,1.47407648]
[1743294880624,1.3302535,601.95,601.03,1.47407648]
[1743294882625,1.3302535,601.95,600.97,1.47407648]
[1743294884223,1.3302535,601.95,601.04,1.47407648]
[1743294887528,1.3302535,601.95,600.98,0.28932972]
[1743294888334,2.1402535,601.95,600.98,0.28932972]
[1743294888530,0.33225902,601.94,600.98,0.28932972]
[1743294889135,0.33225902,601.94,600.8,0.33288948]
[1743294889428,0.33225902,601.94,600.98,0.28937062]
[1743294889625,0.33225902,601.94,600.8,0.33288948]
[1743294890332,0.33225902,601.94,600.81,0.28941033]
[1743294892131,0.33225902,601.94,600.8,0.33288948]
[1743294892334,0.33225902,601.94,600.81,0.28935859]
[1743294898138,0.33225902,601.94,600.8,0.33288948]
[1743294898337,0.33225902,601.94,600.81,0.28935859]